Cogmind - Beta 16 @@@ ROGUE MODE // 2025.11.29 @ 12:23:01 Player: beans Result: Destroyed by D-53 Grenadier with Mini Grenade Launcher Performance ------------- Evolutions (0) 0 Regions Visited (2) 400 Robots Destroyed (6) 30 Value Destroyed (118) 118 Prototype IDs (0) 0 Alien Tech Used (0) 0 Bonus (0) 0 TOTAL SCORE: 548 Bonus ------- None Cogmind --------- Core Integrity 0/250 Matter 285/300 Energy 46/100 System Corruption 0% Temperature Cool (0) Movement Core (50) Location -10/Mines Parts ------- > --- POWER (1) -------- (None) > --- PROPULSION (2) --- (None) > --- UTILITY (2) ------ Improved Heat Sink Improved Targeting Computer > --- WEAPON (2) ------- (None) > --- INVENTORY (5) ---- EM Shotgun Assault Rifle Light Assault Rifle Rocket Launcher Peak State ------------ > --- POWER ------------ Ion Engine > --- PROPULSION ------- Light Treads Light Treads > --- UTILITY ---------- Improved Heat Sink Improved Targeting Computer > --- WEAPON ----------- EM Shotgun EM Shotgun > --- INVENTORY -------- Assault Rifle Light Assault Rifle Rocket Launcher [Rating: 12] Favorites ----------- Power Ion Engine Engine Ion Engine Propulsion Light Treads Treads Light Treads Utility Improved Targeting Computer Device Improved Heat Sink Processor Improved Targeting Computer Weapon Assault Rifle Energy Gun EM Shotgun Ballistic Gun Assault Rifle Launcher Rocket Launcher Build | -11 -10 -10 ------- Run | Yrd Mat Min Slots Evolved . | . . . Power . | . . . Propulsion . | . . . Utility . | . . . Weapon . | . . . Parts Attached 10 | 4 1 5 Power 1 | . . 1 Engine 1 | . . 1 Core . | . . . Reactor . | . . . Propulsion 2 | 2 . . Treads 2 | 2 . . Leg . | . . . Wheel . | . . . Hover . | . . . Flight . | . . . Utility 2 | . 1 1 Device 1 | . . 1 Storage . | . . . Processor 1 | . 1 . Hackware . | . . . Protection . | . . . Artifact . | . . . Weapon 5 | 2 . 3 Energy Gun 2 | . . 2 Energy Cannon . | . . . Ballistic Gun 2 | 2 . . Ballistic Cannon . | . . . Launcher 1 | . . 1 Special Weapon . | . . . Impact Weapon . | . . . Slashing Weapon . | . . . Piercing Weapon . | . . . Special Melee Weapon . | . . . Unidentified Prototypes . | . . . Parts Lost 4 | . . 4 Power 1 | . . 1 Propulsion 2 | . . 2 Utility . | . . . Weapon 1 | . . 1 Highest Loss Streak 4 | . . 4 To Critical Strikes . | . . . Average Backups 2 | . . 2 Power . | . . . Propulsion . | . . . Utility . | . . . Weapon 2 | . . 2 Tool/Special . | . . . Unused Backups . | . . . Power . | . . . Propulsion . | . . . Utility . | . . . Weapon . | . . . Tool/Special . | . . . Average Slot Usage (%) 87 | . 61 90 Engine 8 | . . 9 Treads 27 | . 28 27 Device 9 | . . 10 Processor 13 | . 4 14 Energy Gun 8 | . . 9 Ballistic Gun 18 | . 28 17 Peak Build Rating 12 | 4 6 12 Average Rating 8 | 2 4 9 On Entrance 3 | . 4 6 Avg Prop Armor Cover (%) . | . . . Naked Turns . | . . . Heaviest Build 12 | 3 3 12 Greatest Support 40 | 40 40 40 Greatest Overweight (x) . | . . . Average Overweight (x) . | . . . Largest Inventory Capacity 5 | 5 5 5 Average Capacity 5 | 5 5 5 Most Carried 4 | 4 3 4 Average Carried 2 | . 1 2 Final Capacity 5 | 5 5 5 Final Carried 4 | . 2 4 Class Distribution -------------------- 100% | Mutant Dominant Class ---------------- Mutant | -10/Materials Mutant | -10/Mines Resources | -11 -10 -10 ----------- Run | Yrd Mat Min Matter Collected 391 | 130 . 261 Remotely . | . . . Salvage Created 187 | . . 187 Parts 12 | . . 12 Haulers Intercepted . | . . . Recyclers Shooed . | . . . Parts Field Recycled . | . . . Retrieved Matter . | . . . Parts Self-Destructed . | . . . Prevented . | . . . Parts Restored . | . . . Kills | -11 -10 -10 ------- Run | Yrd Mat Min Combat Hostiles Destroyed 10 | . . 10 Guns 5 | . . 5 AOE 5 | . . 5 Classes Destroyed 4 | . . 4 Tunneler 1 | . . 1 Swarmer 3 | . . 3 Grunt 2 | . . 2 Assembled 5 | . . 5 Best Kill Streak 5 | . . 5 Combat Bots Only 5 | . . 5 Max Kills in Single Turn 4 | . . 4 Gunslinging . | . . . Exploded 4 | . . 4 Melee . | . . . Uniques/NPCs Destroyed . | . . . Combat | -11 -10 -10 -------- Run | Yrd Mat Min Hostile Shots Fired 50 | . 6 44 Missed 11 | . 1 10 Hits 39 | . 5 34 Projectile 39 | . 5 34 AOE 12 | . . 12 Damage Taken 816 | . 41 775 Core 273 | . . 273 Absorbed by Shields . | . . . Core Remaining (%) 100 | 100 . . Volleys Fired 26 | . . 26 Largest 2 | . . 2 Hottest 90 | . . 90 Shots Fired 45 | . . 45 Gun 42 | . . 42 Cannon . | . . . Launcher 3 | . . 3 Special . | . . . Kinetic 33 | . . 33 Thermal . | . . . Explosive 3 | . . 3 Electromagnetic 9 | . . 9 Robot Hit Streak 6 | . . 6 Robot Miss Streak 3 | . . 3 Penetration Max . | . . . Secondary Targets 3 | . . 3 Max Gunslinging Chain 1 | . . 1 Shots Hit Robots 26 | . . 26 Core Hits 21 | . . 21 Critical Kills 1 | . . 1 Critical Parts Destroyed . | . . . Critical Strikes 1 | . . 1 Destroy 1 | . . 1 Melee Attacks . | . . . Impact . | . . . Slashing . | . . . Piercing . | . . . Sneak Attacks . | . . . Combat Hostiles . | . . . Follow-up Attacks . | . . . Damage Inflicted 594 | . . 594 Guns 259 | . . 259 Cannons . | . . . Explosions 335 | . . 335 Melee . | . . . Ramming . | . . . Kinetic 198 | . . 198 Thermal 79 | . . 79 Explosive 256 | . . 256 Electromagnetic 61 | . . 61 Impact . | . . . Slashing . | . . . Piercing . | . . . Highest Corruption . | . . . Average Corruption . | . . . Corruption Purged . | . . . Corruption Blocked . | . . . Overload Shots . | . . . Overflow Damage 27 | . . 27 Projectiles . | . . . Explosions 27 | . . 27 Melee . | . . . Knockbacks . | . . . Impact . | . . . Kinetic . | . . . Secondary . | . . . Self-Inflicted Damage 90 | . . 90 Shots 2 | . . 2 Rammed . | . . . Targets Rammed . | . . . Kicked . | . . . Crushed . | . . . Highest Temperature 10 | . . 10 Average Temperature 3 | . . 3 Received Heat Transfer 57 | . . 57 Siege Activations . | . . . Martial Activations . | . . . Shielding Activations . | . . . Robots Disrupted . | . . . Combat Hostiles . | . . . Robots Corrupted . | . . . Combat Hostiles . | . . . Parts Fried . | . . . Impact Corruptions . | . . . Robots Melted . | . . . Combat Hostiles . | . . . Parts Melted . | . . . Heat Transferred 100 | . . 100 Parts Sabotaged . | . . . Parts Stolen . | . . . Parts Stripped . | . . . Power Chain Reactions 1 | . . 1 Alert | -11 -10 -10 ------- Run | Yrd Mat Min Maximum Alert Level . | . . . Low Security (%) 100 | 100 100 100 Level 1 . | . . . Level 2 . | . . . Level 3 . | . . . Level 4 . | . . . Level 5 . | . . . High Security . | . . . Max Security . | . . . Peak Influence 70 | . . 70 Initial . | . . . Average 16 | . . 19 Influence Increases 142 | . . 142 Destroy 0b10 Robot/C 100 | . . 100 Destroy 0b10 Robot/NC 5 | . . 5 Destroy Leader 20 | . . 20 Destroy Structure 17 | . . 17 Influence Decreases 142 | . . 142 Time Decay 140 | . . 140 Lost Part 2 | . . 2 Squads Dispatched . | . . . Investigation . | . . . Extermination . | . . . Reinforcement . | . . . Assault . | . . . Garrison . | . . . Intercept . | . . . Searches Triggered . | . . . Construction Impeded . | . . . Haulers Reinforced . | . . . Active Scanning Responses . | . . . Cargo Convoy Interrupts . | . . . Stealth | -11 -10 -10 --------- Run | Yrd Mat Min Distress Signals . | . . . Communications Jammed . | . . . Distress Signals . | . . . Times Spotted 16 | . 3 13 Peak Tracking Total 5 | . 3 5 Tactical Retreats . | . . . Traps | -11 -10 -10 ------- Run | Yrd Mat Min Traps Triggered . | . . . Indirectly . | . . . Trap Hack Attempts . | . . . Triggered . | . . . Disarmed . | . . . Reprogrammed . | . . . Reused . | . . . Traps Extracted . | . . . Installed . | . . . Triggered . | . . . Machines | -11 -10 -10 ---------- Run | Yrd Mat Min Machines Disabled . | . . . Max in Single Turn . | . . . Machines Repaired . | . . . Machines Dismantled . | . . . Machines Sabotaged . | . . . Overloaded Fab Kills . | . . . Hacking | -11 -10 -10 --------- Run | Yrd Mat Min Machines Accessed . | . . . Terminals . | . . . Fabricators . | . . . Repair Stations . | . . . Recycling Units . | . . . Scanalyzers . | . . . Garrison Access . | . . . Total Hacks . | . . . Successful . | . . . Failed . | . . . Catastrophic . | . . . Database Lockouts . | . . . Manual . | . . . Terminals . | . . . Fabricators . | . . . Repair Stations . | . . . Recycling Units . | . . . Scanalyzers . | . . . Garrison Access . | . . . Terminal Hacks . | . . . Fabricator Hacks . | . . . Repair Station Hacks . | . . . Recycling Unit Hacks . | . . . Scanalyzer . | . . . Garrison Access Hacks . | . . . Unauthorized Hacks . | . . . Terminals . | . . . Fabricators . | . . . Repair Stations . | . . . Recycling Units . | . . . Scanalyzers . | . . . Garrison Access . | . . . Data Cores Recovered . | . . . Used . | . . . Hacking Detections . | . . . Full Trace Events . | . . . Feedback Events . | . . . Feedback Blocked . | . . . Robot Schematics Acquired . | . . . Robots Built . | . . . Authchips . | . . . Time . | . . . Total Robot Build Rating . | . . . Part Schematics Acquired . | . . . Parts Built . | . . . Authchips . | . . . Time . | . . . Total Part Build Rating . | . . . Part Studies Acquired . | . . . Parts Repaired . | . . . Time . | . . . Parts Recycled . | . . . Recycled Matter . | . . . Retrieved Matter . | . . . Retrieved Components . | . . . Parts Scanalyzed . | . . . Part Schematics Acquired . | . . . Parts Damaged . | . . . Bothacking | -11 -10 -10 ------------ Run | Yrd Mat Min Used RIF Installer . | . . . Robots Hacked . | . . . Non-combat . | . . . Combat . | . . . Robot Hacks Applied . | . . . Relay Couplers Released . | . . . Fabnet Peak Effective % . | . . . Robots Rewired . | . . . Allies Hacked . | . . . Hacks Repelled . | . . . Allies | -11 -10 -10 -------- Run | Yrd Mat Min Total Allies . | . . . Largest Group . | . . . Highest-Rated Group . | . . . Highest-Rated Ally . | . . . Total Orders . | . . . Ally Attacks . | . . . Total Damage . | . . . Kills . | . . . Allies Corrupted . | . . . Allies Melted . | . . . Intel | -11 -10 -10 ------- Run | Yrd Mat Min Active Infowar (turns) . | . . . Robot Analysis Total . | . . . Derelict Logs Recovered 1 | . . 1 Drone Launches . | . . . Drone Recoveries . | . . . Exploration | -11 -10 -10 ------------- Run | Yrd Mat Min Turns Passed 581 | 34 48 499 Spaces Moved 313 | 25 28 260 Core 12 | 12 . . Treads 301 | 13 28 260 Legs . | . . . Wheels . | . . . Hover . | . . . Flight . | . . . Fastest Speed 50 | 50 160 160 Average Speed 155 | 107 160 160 Slowest Speed 160 | 160 160 160 Overloaded Moves . | . . . Propulsion Burnouts . | . . . Robots Hopped . | . . . Potential Cave-ins . | . . . Cave-ins Triggered . | . . . Exploration Rate (%) 22 | 3 7 56 Regions Visited 2 Branch Regions 1 Pre-discovered Areas . | . . . Known Exits Taken . | . . . Unknown Exits Taken 2 | 1 1 . Scrap Searched 1 | . . 1 Spaces Dug . | . . . Terrain Destroyed 21 | . . 21 Melee . | . . . Projectile . | . . . AOE 21 | . . 21 Terrain Rammed . | . . . Walls Destroyed . | . . . Machines Disabled . | . . . Actions | -11 -10 -10 --------- Run | Yrd Mat Min Total 361 | 32 31 298 Wait 1 | . . 1 Move 311 | 24 27 260 Hop . | . . . Pick Up 10 | 4 3 3 Fast Attach . | . . . Attach 7 | 4 1 2 Detach 1 | . . 1 Swap 5 | . . 5 Drop . | . . . Fire 26 | . . 26 Melee . | . . . Ram . | . . . Kick . | . . . Crush . | . . . Escape Stasis . | . . . Rewire . | . . . Trap . | . . . Miscellaneous . | . . . Route ------- -11/Scrapyard -10/Materials -10/Mines History --------- Turn | Location | Event 7 | -11/Scrapyard | Discovered new exit (range 15) 35 | -11/Scrapyard | Entered Materials 45 | -10/Materials | Discovered new exit (range 15) 83 | -10/Materials | Entered Mines 314 | -10/Mines | Build established: Mutant 330 | -10/Mines | Received a Rocket Launcher from a helpful Derelict 498 | -10/Mines | Assembled infested the area 503 | -10/Mines | Assisted by a Guerilla fighting off Assembled 577 | -10/Mines | Core integrity fell below 50% 579 | -10/Mines | Core integrity fell below 20% 582 | -10/Mines | Destroyed by D-53 Grenadier with Mini Grenade Launcher Last Messages --------------- U-05 Engineer lays Concrete. Acquired 1 matter. U-05 Engineer lays Concrete. K-01 Serf collects debris. U-05 Engineer lays Concrete. U-05 Engineer builds a Wall. K-01 Serf collects debris. C-45 Heavy ARC bursts open, deploying its payload. D-53 Grenadier unfolds itself. K-01 Serf destroyed. U-05 Engineer destroyed. EM Shotgun destroyed. Ion Engine destroyed. Lgt. Treads destroyed. Chain reaction triggered in Lgt. Deuterium Engine. Destroyed Shock Absorption System. Lgt. Treads destroyed. D-53 Grenadier destroyed. Map ----- +----------------------------------------------------+ | ?????????# #???# ## ##?# #?????????## ?? | | ?????????# #???# #??# ##?###?????## ? | | ?????????# ##??####! #??## ## ##?????### ? | | ????????## #####?# #???# #????????# # | | ????????# ### #???# ##?????????##? | | ???###### ## #???## ###????????????? | | ???# ##???## ##??????????????? | | ???#= #????## ####????????????? | | ???# #### #?????# #????????????? | | ???# #??## ##?????## ## #????????????? | | ???# #???### #####???????# #??#????????????? | | ???# #?????## ##??????????## #???????????????? | | ???# #??????# #??????????## ##???????????????? | | ???# #??????# #??????????# #????????????????? | | ??## #?????? #???????#?# #????????????????? | | ??# #?????# #??????# ### ##????????????????? | | ??# #????# #???#### # ##???????????????? | | ??# #???## ##???# #???????????????? | | ?? #???# ###???## ##???????????????? | | ? #??# ####### #???????????????? | | #??# ##???????????????? | | #??# #???????????????? | | ##??####### ##???????????????? | | ##??????### ###????????????????? | | ####???????# #??????????????????? | | # #??????????# @ #??????????????????? | | ###??????????# #??????????????????? | | ?????????? ##????????????????? | | ?????????? # ??????????????? | | ?????????? ## ????????????? | | ?????????? ?###; d #####???????????? | | ??????????? ???? ##???????????????? | | ??????????? ### ???? #????????????????? | | ???????????? #??#????? #???????????????? | | ????????????###????????? % ???????????????? | | ????????????????????????## ## #??????????????? | | ?????????????????????????# #?# ##??????????????? | | ?????????????????????????# #?? ##???????????????? | | ?????????????????????????# #?? #????????????????? | | ?????????????????????????? #???#????????????????? | | ?????????????????????????? ?????????????????????? | | ?????????????????????????? ?????????????????????? | | ?????????????????????????????????????????????????? | | ?????????????????????????????????????????????????? | | ?????????????????????????????????????????????????? | | ?????????????????????????????????????????????????? | | ?????????????????????????????????????????????????? | | ?????????????????????????????????????????????????? | | ?????????????????????????????????????????????????? | | ?????????????????????????????????????????????????? | +----------------------------------------------------+ Best States ------------- Heat Dissipation 39 Energy Generation 10 Energy Capacity 250 Matter Stores 285 Matter Capacity 300 Sight Range 16 Terrain Scan Density 10 Evasion (%) 50 Targeting Accuracy 6 Recoil Reduction 2 Item Schematics ----------------- None Robot Schematics ------------------ None Fabricated ------------ Nothing Repaired ---------- Nothing Studied --------- None Alien Tech Used ----------------- None Achievements -------------- None Challenges ------------ None Game ------ Seed GodShockboltHammerchucker Manual? 0 Play Time 00:05:18 Cumulative 220.0 hours Start 2025.11.27 @ 10:18:27 End 2025.11.29 @ 12:23:01 Sessions 1 Manual Loads 0 Difficulty Rogue Special Mode None Game No. 622 Rogue 621 Adventurer 1 Explorer 0 Win Type - Total 0 Types 0/0/0/0/0/0/0/0/0/0 Lore% 65 Gallery% 62 Achievement% 38 Wizard Run 0 Options --------- Layout 1 ASCII 0 Keyboard 0 Movement Mouse Keybinds 0 Fullscreen 1 Font 24/Smallcaps Map View 50x35 Zoom Use 0% Tactical HUD 0 Map Filters NONE Filters NONE Steam 1 RUN: 338c22d5-75c7-4feb-a41c-901936f02b29